bitfinex/quotes_SOLUSD_20240729
["timestamp","ask_amount","ask_price","bid_price","bid_amount"]
[1722229215364,0.3,194.25,194.22,12.79]
[1722229215552,0.3,194.25,194.23,1.02958048]
[1722229215741,0.3,194.25,194.22,12.79]
[1722229216065,0.3,194.25,194.23,1.0295926]
[1722229216266,0.3,194.25,194.18,1.02959233]
[1722229216438,0.3,194.25,194.21,12.79]
[1722229217368,0.3,194.25,194.2,12.79]
[1722229217866,0.3,194.25,194.17,16.5687]
[1722229218041,0.3,194.25,194.18,12.79]
[1722229218238,13.09,194.25,194.18,12.79]
[1722229218459,45.0,194.24,194.18,12.79]
[1722229218649,13.09,194.25,194.18,12.79]
[1722229218863,13.09,194.25,194.19,12.79]
[1722229219559,0.3,194.25,194.19,12.79]
[1722229220151,0.3,194.25,194.14,1.02970058]
[1722229220152,0.3,194.25,194.21,12.79]
[1722229220375,0.3,194.25,194.24,12.79]
[1722229220545,0.3,194.25,194.24,13.81926602]
[1722229220943,0.3,194.25,194.24,12.79]
[1722229221144,0.3,194.25,194.24,13.81933014]
[1722229221348,0.8016419,194.33,194.24,58.98930853]
[1722229221547,0.8016419,194.33,194.32,12.79]
[1722229221950,0.8016419,194.33,194.26,1.02901162]
[1722229222257,0.8016419,194.33,194.31,12.79]
[1722229222652,0.8016419,194.33,194.27,1.02910666]
[1722229222850,0.8016419,194.33,194.27,12.79]
[1722229223273,0.8016419,194.33,194.23,1.02899441]
[1722229223573,0.8016419,194.33,194.24,1.19916216]
[1722229224268,0.8016419,194.33,194.24,1.02916216]
[1722229225475,0.8016419,194.33,194.22,1.02917048]
[1722229225649,6.6654,194.32,194.22,1.02917048]
[1722229225963,0.8016419,194.33,194.24,25.49]
[1722229226146,0.8016419,194.33,194.25,1.36896304]
[1722229226873,0.8016419,194.33,194.25,66.36896304]
[1722229227249,0.8016419,194.33,194.25,21.36896304]
[1722229227450,0.8016419,194.33,194.26,0.17]
[1722229227752,0.8016419,194.33,194.27,1.02894327]
[1722229228063,0.8016419,194.33,194.28,0.17]
[1722229228362,0.8016419,194.33,194.29,1.0288603]
[1722229228573,0.8016419,194.33,194.3,1.0289073]
[1722229228963,0.8016419,194.33,194.3,1.02888518]
[1722229229269,0.8016419,194.33,194.3,1.02896325]
[1722229229450,0.8016419,194.33,194.31,0.17]
[1722229230159,0.8016419,194.33,194.27,1.02874634]
[1722229230361,0.8016419,194.33,194.28,0.17]
[1722229230563,0.8016419,194.33,194.29,1.02886429]
[1722229230769,0.8016419,194.33,194.3,1.028843]
[1722229231682,0.8016419,194.33,194.26,1.02885134]
[1722229231979,0.8016419,194.33,194.27,1.02883157]
[1722229233876,0.8016419,194.33,194.28,0.17]
[1722229234177,0.8016419,194.33,194.3,15.1396]
[1722229234357,0.8016419,194.33,194.31,1.1987153]
[1722229234554,0.8016419,194.33,194.31,1.0287153]
[1722229235478,0.8016419,194.33,194.3,1.02888205]
[1722229235859,0.8016419,194.33,194.31,0.17]
[1722229236069,0.8016419,194.33,194.32,1.02877189]
[1722229236368,0.8016419,194.33,194.31,1.02878396]
[1722229236984,0.8016419,194.33,194.28,1.02890758]
[1722229237483,0.8016419,194.33,194.25,16.3252]
[1722229237484,0.8016419,194.33,194.26,1.02905777]
[1722229237663,0.8016419,194.33,194.27,1.02911618]
[1722229238786,0.8016419,194.33,194.27,1.02904318]
[1722229245171,0.8016419,194.33,194.28,12.74]
[1722229245376,0.8016419,194.33,194.29,1.02906876]
[1722229245862,0.8016419,194.33,194.28,12.74]
[1722229246066,0.8016419,194.33,194.29,1.02905174]
[1722229246264,0.8016419,194.33,194.22,1.02904012]
[1722229246479,0.8016419,194.33,194.28,12.74]
[1722229246785,0.8016419,194.33,194.29,1.02908182]
[1722229246979,0.8016419,194.33,194.3,1.02906656]
[1722229247890,0.8016419,194.33,194.29,12.74]
[1722229248058,0.8016419,194.33,194.3,13.76905969]
[1722229250987,0.8016419,194.33,194.3,1.02905969]
[1722229251284,0.8016419,194.33,194.3,1.02902321]
[1722229251485,0.8016419,194.33,194.3,13.76902321]
[1722229252369,0.8016419,194.33,194.32,12.74]
[1722229253766,0.8016419,194.33,194.3,12.74]
[1722229254084,0.8016419,194.33,194.29,17.55114255]
[1722229254284,0.8016419,194.33,194.3,12.74]
[1722229256081,0.8016419,194.33,194.26,1.02893821]
[1722229256281,0.8016419,194.33,194.25,16.51213476]
[1722229256477,13.5416419,194.33,194.26,12.74]
[1722229256666,12.74,194.32,194.26,12.74]
[1722229256862,12.74,194.32,194.22,1.02914473]
[1722229257203,12.74,194.32,194.26,12.74]
[1722229257399,13.5416419,194.33,194.26,12.74]
[1722229258068,13.5416419,194.33,194.2,66.4431]
[1722229258069,0.8016419,194.33,194.27,13.76921991]
[1722229258694,0.8016419,194.33,194.28,12.74]
[1722229259361,0.8016419,194.33,194.21,1.02909544]
[1722229259596,0.8016419,194.33,194.28,12.74]
[1722229259774,0.8016419,194.33,194.29,12.74]
[1722229260398,13.5416419,194.33,194.26,12.74]
[1722229261087,13.5416419,194.33,194.27,1.02918334]
[1722229261900,13.5416419,194.33,194.26,12.74]
[1722229262393,6.503,194.32,194.26,12.74]
[1722229262580,12.74,194.31,194.21,1.02917053]
[1722229262773,12.74,194.29,194.22,12.74]
[1722229262975,12.74,194.28,194.21,12.74]
[1722229263185,12.74,194.27,194.2,12.74]
[1722229263364,12.74,194.29,194.22,12.74]
[1722229263894,12.74,194.28,194.21,12.74]
[1722229264488,12.74,194.28,194.22,1.0294774]
[1722229264973,12.74,194.28,194.21,12.74]
[1722229265480,12.74,194.28,194.16,1.02944608]
[1722229265824,12.74,194.27,194.2,12.74]
[1722229265994,6.503,194.32,194.24,12.74]
[1722229266174,6.503,194.32,194.17,0.17]
[1722229266175,6.503,194.32,194.26,12.74]
[1722229266379,6.503,194.32,194.21,1.02923637]
[1722229266688,12.74,194.3,194.23,12.74]
[1722229267288,6.503,194.32,194.25,12.74]
[1722229267496,6.503,194.32,194.26,12.74]
[1722229268070,6.503,194.32,194.2,51.98929432]
[1722229268071,6.503,194.32,194.27,12.74]
[1722229268585,6.503,194.32,194.29,12.74]
[1722229270086,6.503,194.32,194.21,1.02915492]
[1722229270087,6.503,194.32,194.21,16.53915492]
[1722229270281,6.503,194.32,194.26,12.74]
[1722229270792,12.74,194.29,194.22,1.02918083]
[1722229270992,12.74,194.29,194.23,12.74]
[1722229271397,6.503,194.32,194.18,1.02933644]
[1722229271595,12.74,194.27,194.2,12.74]
[1722229271791,12.74,194.27,194.19,1.02945954]
[1722229271993,12.74,194.27,194.2,12.74]
[1722229272499,12.74,194.29,194.22,12.74]
[1722229273185,6.503,194.32,194.2,1.0294809]
[1722229273385,6.503,194.32,194.16,25.5]
[1722229273386,6.503,194.32,194.21,1.02939542]
[1722229274399,6.503,194.32,194.17,1.02935101]
[1722229274699,6.503,194.32,194.18,1.19936929]
[1722229276884,6.503,194.32,194.19,41.18]
[1722229277090,6.503,194.32,194.21,15.51]
[1722229277288,6.503,194.32,194.22,46.19915306]
[1722229278293,6.503,194.32,194.22,1.19915306]
[1722229279800,5.503,194.32,194.22,1.19915306]
[1722229280605,5.503,194.32,194.2,1.02923398]
[1722229280787,5.503,194.32,194.21,1.02939354]
[1722229281903,5.503,194.32,194.17,1.02931441]
[1722229282086,5.503,194.32,194.18,1.02935202]
[1722229282289,5.503,194.32,194.19,0.17]
[1722229282484,5.503,194.32,194.19,1.19939678]
[1722229284088,6.53253427,194.32,194.19,0.17]
[1722229284293,6.53253427,194.32,194.18,1.02942945]
[1722229284515,5.503,194.32,194.18,1.02942945]
[1722229284701,5.503,194.32,194.19,0.17]
[1722229284909,5.503,194.32,194.18,1.02941462]
[1722229284910,6.53253427,194.32,194.18,1.02941462]
[1722229285397,45.0,194.31,194.18,1.02941462]
[1722229286608,1.02953427,194.3,194.17,1.19953409]
[1722229286807,1.02953427,194.3,194.17,0.17]
[1722229287015,45.0,194.31,194.16,26.52954775]
[1722229287393,0.17,194.3,194.16,26.52954775]
[1722229288526,45.0,194.31,194.16,26.52954775]
[1722229289013,5.503,194.32,194.16,26.52954775]
[1722229289222,6.53253427,194.32,194.17,0.17]
[1722229289391,6.53253427,194.32,194.18,1.02950023]
[1722229289995,6.53253427,194.32,194.17,1.1995012]
[1722229290211,16.5554,194.31,194.17,1.1995012]
[1722229290521,16.5554,194.31,194.17,1.0295012]
[1722229293230,12.75,194.29,194.22,12.75]
[1722229294806,16.5554,194.31,194.22,12.75]
[1722229295008,12.75,194.28,194.22,12.75]
[1722229295518,12.75,194.29,194.22,12.75]
[1722229296729,12.75,194.28,194.21,12.75]
[1722229298518,12.75,194.27,194.15,22.16783931]
[1722229298727,12.75,194.26,194.19,12.75]
[1722229299236,12.75,194.23,194.11,7.56298187]
[1722229299528,12.75,194.23,194.16,12.75]
[1722229299915,12.75,194.22,194.11,1.02968187]
[1722229300427,12.75,194.21,194.14,12.75]
[1722229300624,12.75,194.21,194.15,12.75]
[1722229300835,12.75,194.21,194.1,15.1061]
[1722229301127,12.75,194.2,194.13,12.75]
[1722229302229,12.75,194.17,194.08,13.78542316]
[1722229302431,15.9236,194.15,194.05,15.1647]
[1722229302617,28.6736,194.15,194.05,16.19483702]
[1722229302810,28.6736,194.15,194.09,12.75]
[1722229304416,12.75,194.13,194.02,11.99825019]
[1722229304619,12.75,194.13,194.01,1.03022202]
[1722229304620,12.75,194.12,194.05,12.75]
[1722229305032,19.2822,194.12,194.05,12.75]
[1722229305724,12.75,194.11,194.05,12.75]
[1722229305917,12.75,194.11,194.04,12.75]
[1722229306216,12.75,194.1,193.99,17.66353369]
[1722229306409,12.75,194.09,194.02,12.75]
[1722229308432,12.75,194.1,194.03,12.75]
[1722229308817,12.75,194.08,194.02,12.75]
[1722229309112,12.75,194.08,194.01,12.75]
[1722229310103,12.75,194.07,193.99,16.6331]
[1722229310315,12.75,194.07,194.01,12.75]
[1722229310517,7.56173427,194.12,194.01,12.75]
[1722229310729,12.75,194.07,194.01,12.75]
[1722229310921,12.75,194.07,193.99,16.6331]
[1722229311320,28.6446,194.07,193.97,7.65075443]
[1722229311632,28.6446,194.07,193.94,19.51733941]
[1722229311633,12.75,194.05,193.98,12.75]
[1722229311934,15.6131,194.11,194.0,12.75]
[1722229312126,46.19953427,194.1,194.01,12.75]
[1722229312335,12.75,194.08,194.01,12.75]
[1722229312717,12.75,194.08,193.94,1.03078094]
[1722229312923,12.75,194.08,194.01,12.75]
[1722229314625,15.6131,194.11,194.02,12.75]
[1722229314827,12.75,194.1,194.03,12.75]
[1722229315134,12.75,194.09,194.02,12.75]
[1722229315326,12.75,194.09,193.94,1.03078094]
[1722229315327,12.75,194.1,194.03,12.75]
[1722229315723,12.75,194.09,194.02,12.75]
[1722229316927,12.75,194.08,194.01,12.75]
[1722229317537,1.02953427,194.07,194.01,12.75]
[1722229317836,13.77953427,194.07,193.95,1.03066467]
[1722229318017,1.02953427,194.06,194.0,12.75]
[1722229318212,12.75,194.07,194.0,12.75]
[1722229318532,12.75,194.07,193.94,46.20071648]
[1722229318533,12.75,194.05,193.99,12.75]
[1722229318731,12.75,194.05,193.98,12.75]
[1722229319432,1.02953427,194.04,193.98,12.75]
[1722229319644,1.02953427,194.08,193.98,12.75]
[1722229319820,12.75,194.05,193.98,12.75]
[1722229320718,12.75,194.04,193.97,12.75]
[1722229321424,12.75,194.03,193.96,12.75]
[1722229321741,1.02953427,194.02,193.96,12.75]
[1722229321922,12.75,194.02,193.93,15.1227]
[1722229322237,12.75,194.02,193.95,12.75]
[1722229322445,12.75,194.0,193.9,13.38747872]
[1722229322616,12.75,193.99,193.93,12.75]
[1722229323030,16.057,194.03,193.96,12.75]
[1722229323236,28.637,194.03,193.91,1.03097582]
[1722229323416,28.637,194.03,193.96,12.75]
[1722229323617,57.92,194.02,193.95,12.75]
[1722229323935,12.75,194.01,193.95,12.75]
[1722229324142,28.637,194.03,193.96,12.75]
[1722229324437,28.637,194.03,193.97,12.75]
[1722229324644,28.637,194.03,193.96,12.75]
[1722229325874,28.637,194.03,193.95,12.75]
[1722229325875,12.75,194.02,193.95,12.75]
[1722229326142,12.75,194.01,193.94,12.75]
[1722229326438,15.887,194.03,193.96,12.75]
[1722229326439,12.75,194.02,193.96,12.75]
[1722229326812,15.887,194.03,193.96,12.75]
[1722229327144,12.75,194.04,193.97,12.75]
[1722229327836,12.75,194.03,193.91,1.03094089]
[1722229328037,12.75,194.03,193.96,12.75]
[1722229328246,6.3778,194.05,193.96,12.75]
[1722229328541,12.75,194.03,193.96,12.75]
[1722229329654,12.75,194.03,193.92,0.17]
[1722229329655,12.75,194.02,193.95,12.75]
[1722229329863,46.19953427,194.04,193.88,16.4697]
[1722229329864,12.75,193.99,193.88,16.4697]
[1722229330042,12.75,193.99,193.92,12.75]
[1722229330756,12.75,193.99,193.88,17.50081844]
[1722229330757,12.75,193.96,193.89,12.75]
[1722229331263,12.75,193.96,193.9,12.75]
[1722229331561,4.1233,194.02,193.9,12.75]
[1722229331562,12.75,193.97,193.9,12.75]
[1722229333170,12.75,193.96,193.9,12.75]
[1722229333561,5.15253427,194.03,193.91,12.75]
[1722229333761,12.75,193.97,193.91,12.75]
[1722229334281,12.75,193.98,193.91,12.75]
[1722229334748,12.75,193.97,193.9,12.75]
[1722229336257,6.2078,194.05,193.94,12.75]
[1722229336463,12.75,194.02,193.95,12.75]
[1722229337850,6.2078,194.05,193.95,12.75]
[1722229338053,12.75,194.03,193.96,13.78090963]
[1722229338276,12.75,194.03,193.96,12.75]
[1722229338771,12.75,194.02,193.95,12.75]
[1722229340471,12.75,194.01,193.91,1.03086065]
[1722229340778,12.75,194.0,193.93,12.75]
[1722229341570,12.75,194.0,193.92,12.75]
[1722229341864,12.75,193.98,193.91,12.75]
[1722229342367,12.75,193.97,193.9,32.75]
[1722229342676,12.75,193.97,193.9,12.75]
[1722229343390,12.75,193.96,193.88,16.4697]
[1722229343595,12.75,193.95,193.88,29.2197]
[1722229343957,12.75,193.96,193.89,12.75]
[1722229344159,1.02953427,194.01,193.89,12.75]
[1722229344368,12.75,193.97,193.9,13.78121608]
[1722229344574,1.02953427,194.04,193.92,12.75]
[1722229344783,12.75,194.0,193.93,12.75]
[1722229345663,12.75,193.99,193.92,12.75]
[1722229347563,46.02953427,194.04,193.92,12.75]
[1722229347767,12.75,193.99,193.92,12.75]
[1722229347961,12.75,193.99,193.93,12.75]
[1722229348360,12.75,193.96,193.88,16.4697]
[1722229348589,12.75,193.96,193.89,12.75]
[1722229349382,12.75,193.97,193.9,12.75]
[1722229349897,12.75,193.98,193.9,12.75]
[1722229350068,12.75,193.98,193.91,12.75]
[1722229350787,12.75,193.99,193.92,12.75]
[1722229350988,12.75,193.98,193.91,12.75]
[1722229351375,12.75,193.97,193.9,12.75]
[1722229352682,12.75,193.97,193.88,16.4697]
[1722229352868,5.32323427,194.0,193.88,16.4697]
[1722229352869,12.75,193.95,193.88,29.2197]
[1722229353371,12.75,193.95,193.88,16.4697]
[1722229353789,12.75,193.94,193.88,16.4697]
[1722229354392,13.77953427,193.93,193.88,16.4697]
[1722229354574,12.75,193.92,193.84,6.3441]
[1722229354888,12.75,193.91,193.84,19.0941]
[1722229355095,12.75,193.93,193.86,12.75]
[1722229355589,12.75,193.92,193.85,12.75]
[1722229356003,12.75,193.93,193.86,12.75]
[1722229357169,7.46933427,193.97,193.86,12.75]
[1722229357392,12.75,193.93,193.86,12.75]
[1722229358889,45.17,193.96,193.87,12.75]
[1722229359193,12.75,193.96,193.89,12.75]
[1722229359392,12.75,193.96,193.9,1.0313417]
[1722229360284,12.75,193.96,193.89,12.75]
[1722229361185,12.75,193.95,193.88,12.75]
[1722229361787,6.4398,193.97,193.87,12.75]
[1722229361981,2.21450566,194.03,193.89,12.75]
[1722229362188,12.75,193.99,193.92,12.75]
[1722229362387,12.75,194.0,193.93,12.75]
[1722229363904,1.02953427,194.08,193.98,12.75]
[1722229364201,6.1559,194.09,194.02,12.75]
[1722229364406,12.75,194.1,194.03,13.78062504]
[1722229364579,12.75,194.1,194.04,1.03057669]
[1722229365186,11.30613427,194.14,193.97,25.55]
[1722229365504,6.1559,194.14,193.98,66.20057781]
[1722229365899,6.1559,194.14,193.99,0.17]
[1722229366100,6.1559,194.14,193.99,1.20049273]
[1722229366405,6.1559,194.14,194.0,0.17]
[1722229366599,6.1559,194.14,194.02,15.5869]
[1722229366797,6.1559,194.14,194.03,1.20038171]
[1722229367199,6.1559,194.19,194.03,91.75038171]
[1722229367505,31.7059,194.23,194.04,0.17]
[1722229367713,4.1192,194.21,194.05,1.03015816]
[1722229367904,4.1192,194.21,194.06,0.17]
[1722229368213,4.1194,194.2,194.06,1.20018]
[1722229370109,24.1192,194.22,194.06,1.20018]
[1722229370410,4.1194,194.21,194.06,1.20018]
[1722229370604,6.1559,194.23,194.06,26.75018]
[1722229370810,4.1179,194.27,194.09,25.55]
[1722229371119,4.1179,194.27,194.1,66.36983567]
[1722229371297,4.1179,194.27,194.11,1.02985115]
[1722229371486,4.1179,194.27,194.12,0.17]
[1722229371683,4.1184,194.25,194.13,1.0298377]
[1722229372132,4.1187,194.24,194.12,0.17]
[1722229372424,5.14823427,194.24,194.1,65.0]
[1722229372715,0.17,194.23,194.11,1.19996489]
[1722229373008,45.17,194.24,194.11,1.19996489]
[1722229374817,25.55,194.19,194.07,15.033]
[1722229374999,69.2898,194.18,194.07,15.033]
[1722229375326,1.02953427,194.17,194.07,15.033]
[1722229375623,5.14963427,194.17,194.07,15.033]
[1722229375919,1.02953427,194.17,194.07,15.033]
[1722229376096,25.55,194.19,194.07,15.033]
[1722229376289,4.1192,194.21,194.08,1.03012794]
[1722229376507,25.55,194.22,194.08,1.03012794]
[1722229376508,0.17,194.22,194.08,1.03012794]
[1722229376712,0.17,194.21,194.08,1.03012794]
[1722229377613,6.3993,194.23,194.08,1.03012794]
[1722229377819,6.3993,194.23,194.09,0.34]
[1722229378020,6.3993,194.23,194.1,1.02997638]
[1722229378221,6.3993,194.23,194.11,1.19997671]
[1722229378513,6.3993,194.23,194.1,1.02997671]
[1722229378712,6.3993,194.23,194.11,0.17]
[1722229380095,6.3993,194.23,194.11,1.19997887]
[1722229383015,6.3993,194.23,194.11,0.17]
[1722229383233,6.3993,194.23,194.1,0.17]
[1722229383940,45.17,194.22,194.08,45.0]
[1722229384222,4.1199,194.18,194.07,15.033]
[1722229384428,45.17,194.22,194.08,1.03026806]
[1722229385503,45.17,194.22,194.09,0.17]
[1722229386027,4.1196,194.19,194.07,15.033]
[1722229386224,46.19953427,194.18,194.07,15.033]
[1722229386727,25.55,194.2,194.07,15.033]
[1722229387027,25.55,194.2,194.07,16.06316173]
[1722229387213,12.77,194.16,194.09,12.77]
[1722229387416,45.0,194.19,194.07,15.033]
[1722229387417,12.77,194.15,194.08,12.77]
[1722229388008,12.77,194.13,194.07,15.033]
[1722229388224,12.77,194.13,194.07,27.803]
[1722229388434,12.77,194.15,194.08,12.77]
[1722229389724,12.77,194.16,194.09,12.77]
[1722229391116,12.77,194.16,194.1,12.77]
[1722229391821,12.77,194.15,194.08,12.77]
[1722229392013,45.0,194.19,194.07,16.06324693]
[1722229392330,12.77,194.16,194.09,12.77]
[1722229392712,12.77,194.17,194.1,12.77]
[1722229392913,12.77,194.16,194.1,12.77]
[1722229393302,12.77,194.16,194.09,12.77]
[1722229393723,12.77,194.17,194.1,12.77]
[1722229394530,12.77,194.17,194.11,12.77]
[1722229394708,12.77,194.18,194.11,12.77]
[1722229394910,12.77,194.18,194.11,13.80009854]
[1722229395223,12.77,194.18,194.11,12.77]
[1722229396519,1.02953427,194.2,194.11,12.77]
[1722229396724,12.77,194.18,194.11,12.77]
[1722229398462,12.77,194.17,194.1,12.77]
[1722229400129,12.77,194.15,194.07,15.033]
[1722229400321,4.2899,194.18,194.07,15.033]
[1722229400322,12.77,194.14,194.07,15.033]
[1722229400644,12.77,194.12,194.07,15.033]
[1722229400835,12.77,194.13,194.07,15.033]
[1722229401553,12.77,194.13,194.07,27.803]
[1722229401840,12.77,194.14,194.07,27.803]
[1722229402021,12.77,194.15,194.08,12.77]
[1722229402422,12.77,194.16,194.09,12.77]
[1722229403849,12.77,194.16,194.08,12.77]
[1722229404038,12.77,194.15,194.08,12.77]
[1722229405649,12.77,194.15,194.07,15.033]
[1722229405827,12.77,194.15,194.08,12.77]
[1722229407421,12.77,194.14,194.07,27.803]
[1722229407627,12.77,194.12,194.07,15.033]
[1722229407827,12.77,194.11,194.07,15.033]
[1722229410728,12.77,194.12,194.07,15.033]
[1722229410944,12.77,194.14,194.07,27.803]
[1722229411140,1.02953427,194.19,194.08,12.77]
[1722229411336,12.77,194.15,194.08,12.77]
[1722229412054,12.77,194.15,194.09,12.77]
[1722229412349,12.77,194.13,194.07,15.033]
[1722229412754,12.77,194.12,194.07,15.033]
[1722229414637,12.77,194.11,194.07,15.033]
[1722229414837,12.77,194.11,194.04,12.77]
[1722229415337,12.77,194.1,194.03,29.3315]
[1722229416765,12.77,194.1,194.03,16.5615]
[1722229417056,12.77,194.1,194.03,29.3315]
[1722229417834,12.77,194.09,194.03,16.5615]
[1722229418754,12.77,194.07,194.03,16.5615]
[1722229419341,12.77,194.08,194.03,16.5615]
[1722229419737,12.77,194.09,194.03,16.5615]
[1722229420056,13.79953427,194.12,194.05,12.77]
[1722229420549,12.77,194.12,194.05,12.77]
[1722229423058,13.79953427,194.11,194.04,12.77]
[1722229423568,1.19953427,194.13,194.04,12.77]
[1722229423867,12.77,194.11,194.04,12.77]
[1722229425858,12.77,194.11,194.05,12.77]
[1722229426065,1.02953427,194.18,194.07,12.77]
[1722229426267,12.77,194.15,194.08,12.77]
[1722229426469,1.02953427,194.14,194.08,12.77]
[1722229426854,13.79953427,194.14,194.07,12.77]
[1722229427148,1.02953427,194.14,194.08,12.77]
[1722229427349,1.02953427,194.14,194.03,16.5615]
[1722229427350,1.02953427,194.16,194.09,12.77]
[1722229427558,13.79953427,194.16,194.09,12.77]
[1722229429775,1.02953427,194.16,194.08,12.77]
[1722229430071,12.77,194.16,194.09,12.77]
[1722229430380,1.02953427,194.15,194.09,12.77]
[1722229430549,13.79953427,194.16,194.09,12.77]
[1722229430743,12.77,194.15,194.08,12.77]
[1722229432664,1.19953427,194.17,194.08,12.77]
[1722229432865,1.19953427,194.17,194.03,17.59182275]
[1722229432866,57.77,194.18,194.11,12.77]
[1722229433072,0.17,194.19,194.11,12.77]
[1722229433257,12.77,194.19,194.12,12.77]
[1722229433570,6.4014,194.2,194.12,12.77]
[1722229433571,12.77,194.18,194.12,12.77]
[1722229433774,12.77,194.18,194.11,29.2116]
[1722229436876,12.27,194.18,194.11,29.2116]
[1722229437556,1.02953427,194.2,194.11,29.2116]
[1722229437758,12.77,194.19,194.12,12.77]
[1722229437971,45.0,194.2,194.03,15.0578]
[1722229437972,12.77,194.14,194.03,15.0578]
[1722229438155,12.77,194.12,194.05,12.77]
[1722229438669,1.02953427,194.13,194.06,12.77]
[1722229438670,13.79953427,194.13,194.06,12.77]
[1722229438979,12.77,194.15,194.03,15.0578]
[1722229439147,12.77,194.16,194.09,12.77]
[1722229439346,13.79953427,194.17,194.1,12.77]
[1722229439772,1.02953427,194.19,194.11,12.77]
[1722229439983,13.79953427,194.19,194.12,12.77]
[1722229440549,12.77,194.19,194.12,12.77]
[1722229440753,6.0494,194.22,194.13,12.77]
[1722229440957,6.0494,194.22,194.11,16.657]
[1722229440958,12.77,194.22,194.16,12.77]
[1722229441557,12.77,194.25,194.18,12.77]
[1722229441867,12.77,194.26,194.19,12.77]
[1722229442846,18.8194,194.27,194.21,12.77]
[1722229443170,18.8194,194.27,194.14,7.65852123]
[1722229443171,12.77,194.27,194.2,12.77]
[1722229443653,1.02953427,194.28,194.21,12.77]
[1722229443974,12.77,194.29,194.22,12.77]
[1722229444270,12.77,194.27,194.2,12.77]
[1722229444651,12.77,194.24,194.19,15.2052]
[1722229444851,12.77,194.21,194.14,27.9393]
[1722229445287,12.77,194.18,194.09,21.2302]
[1722229445465,12.77,194.17,194.11,12.77]
[1722229445862,12.77,194.15,194.09,27.9393]
[1722229446053,1.02953427,194.16,194.09,27.9393]
[1722229446257,12.77,194.16,194.09,27.9393]
[1722229446477,1.02953427,194.22,194.11,12.77]
[1722229446691,12.77,194.19,194.12,12.77]
[1722229447283,1.02953427,194.2,194.09,15.1693]
[1722229448373,0.17,194.19,194.09,15.1693]
[1722229448577,1.02953427,194.18,194.09,15.1693]
[1722229448955,0.17,194.17,194.09,15.1693]
[1722229449179,1.19953427,194.17,194.09,15.1693]
[1722229451070,1.19953427,194.17,194.05,6.0609]
[1722229451381,0.17,194.16,194.05,6.0609]
[1722229451564,1.02953427,194.15,194.05,6.0609]
[1722229451761,1.19953427,194.17,194.05,6.0609]
[1722229452879,6.3167,194.16,194.04,15.2035]
[1722229453181,1.19953427,194.15,194.04,15.2035]
[1722229453382,1.02953427,194.14,194.04,15.2035]
[1722229454970,1.02953427,194.15,194.04,15.2035]
[1722229455583,1.02953427,194.14,194.04,15.2035]
[1722229457981,0.17,194.13,194.04,15.2035]
[1722229458360,0.17,194.14,194.04,15.2035]
[1722229459279,1.19953427,194.14,194.04,15.2035]